Cogmind - Beta 15 @@@ ROGUE MODE // 2025.09.07 @ 06:00:27 Player: Godsword Result: Self-destructed Performance ------------- Evolutions (1) 500 Regions Visited (2) 400 Robots Destroyed (28) 140 Value Destroyed (502) 502 Prototype IDs (0) 0 Alien Tech Used (0) 0 Bonus (0) 0 TOTAL SCORE: 1542 Bonus ------- None Cogmind --------- Core Integrity 296/400 Matter 293/300 Energy 65/100 System Corruption 0% Temperature Cool (0) Movement Hovering (120) Ox1 Location -9/Materials Parts ------- > --- POWER (1) -------- (None) > --- PROPULSION (3) --- Hover Unit > --- UTILITY (3) ------ Medium Storage Unit Signal Interpreter Improved Terrain Scanner > --- WEAPON (2) ------- (None) > --- INVENTORY (10) --- Light Ion Engine Small Storage Unit High-capacity Battery (250) Signal Interpreter Improved Terrain Scanner Light Armor Plating Hacking Suite Mining Laser Peak State ------------ > --- POWER ------------ Light Ion Engine > --- PROPULSION ------- Hover Unit Hover Unit Hover Unit > --- UTILITY ---------- Small Storage Unit Signal Interpreter Improved Terrain Scanner > --- WEAPON ----------- Light Assault Rifle Light Assault Rifle > --- INVENTORY -------- Ion Engine Medium Storage Unit High-capacity Battery Signal Interpreter Improved Terrain Scanner Light Armor Plating Hacking Suite Mining Laser [Rating: 12] Favorites ----------- Power Light Ion Engine Engine Light Ion Engine Propulsion Compact Wheel Leg Aluminum Leg Wheel Compact Wheel Hover Unit Hover Unit Utility Small Storage Unit Device Improved Terrain Scanner Storage Small Storage Unit Processor Signal Interpreter Weapon Light Assault Rifle Energy Gun Medium Laser Ballistic Gun Light Assault Rifle Build | -11 -10 -9 ------- Run | Yrd Mat Mat Slots Evolved 2 | . . 2 Power . | . . . Propulsion 1 | . . 1 Utility 1 | . . 1 Weapon . | . . . Parts Attached 24 | 7 11 6 Power 4 | 1 2 1 Engine 4 | 1 2 1 Core . | . . . Reactor . | . . . Propulsion 11 | 2 6 3 Treads . | . . . Leg 2 | . 2 . Wheel 2 | 2 . . Hover 7 | . 4 3 Flight . | . . . Utility 5 | 2 1 2 Device 2 | 1 . 1 Storage 2 | 1 . 1 Processor 1 | . 1 . Hackware . | . . . Protection . | . . . Artifact . | . . . Weapon 4 | 2 2 . Energy Gun 1 | 1 . . Energy Cannon . | . . . Ballistic Gun 3 | 1 2 . Ballistic Cannon . | . . . Launcher . | . . . Special Weapon . | . . . Impact Weapon . | . . . Slashing Weapon . | . . . Piercing Weapon . | . . . Special Melee Weapon . | . . . Unidentified Prototypes . | . . . Parts Lost 9 | . 2 7 Power 2 | . 1 1 Propulsion 5 | . 1 4 Utility . | . . . Weapon 2 | . . 2 Highest Loss Streak 7 | . 2 7 To Critical Strikes . | . . . Average Backups 6 | 3 7 8 Power . | . . . Propulsion . | 1 . . Utility 4 | . 4 5 Weapon . | . 1 1 Tool/Special . | . . . Unused Backups 13 | . 8 5 Power 1 | . . 1 Propulsion 3 | . 3 . Utility 8 | . 5 3 Weapon 1 | . . 1 Tool/Special . | . . . Average Slot Usage (%) 89 | . 91 84 Engine 8 | . 8 7 Leg 3 | . 4 . Wheel 10 | . 13 . Hover 11 | . 7 23 Device 8 | . 7 11 Storage 13 | . 14 11 Processor 7 | . 6 11 Energy Gun 2 | . 3 . Ballistic Gun 23 | . 24 19 Peak Build Rating 12 | 9 10 12 Average Rating 8 | 6 8 10 On Entrance 5 | . 9 8 Naked Turns . | . . . Heaviest Build 16 | 13 13 16 Greatest Support 32 | 32 32 18 Greatest Overweight (x) 3 | 3 1 1 Average Overweight (x) . | . . . Largest Inventory Capacity 10 | 8 8 10 Average Capacity 8 | 7 8 9 Most Carried 10 | 7 8 10 Average Carried 6 | 3 7 8 Final Capacity 10 | 8 8 10 Final Carried 8 | 7 8 8 Class Distribution -------------------- 57% | Scavenger-Mutant 42% | Mutant Dominant Class ---------------- Scavenger-Mutant | -10/Materials Scavenger-Mutant | -9/Materials Resources | -11 -10 -9 ----------- Run | Yrd Mat Mat Matter Collected 918 | 435 365 118 Remotely . | . . . Salvage Created 842 | 200 378 264 Parts 68 | 21 25 22 Haulers Intercepted 1 | . 1 . Recyclers Shooed . | . . . Parts Field Recycled . | . . . Retrieved Matter . | . . . Parts Self-Destructed . | . . . Prevented . | . . . Kills | -11 -10 -9 ------- Run | Yrd Mat Mat Combat Hostiles Destroyed 13 | . 8 5 Guns 13 | . 8 5 Classes Destroyed 9 | 3 6 . Worker 2 | 2 . . Builder 2 | . 1 1 Tunneler 5 | 5 . . Hauler 1 | . 1 . Recycler 1 | 1 . . Operator 2 | . 1 1 Watcher 2 | . 1 1 Swarmer 3 | . 3 . Grunt 10 | . 5 5 Best Kill Streak 8 | 5 3 8 Combat Bots Only 4 | . 3 4 Max Kills in Single Turn 2 | 1 2 1 Gunslinging 1 | . 1 . Exploded . | . . . Melee . | . . . Uniques/NPCs Destroyed . | . . . Combat | -11 -10 -9 -------- Run | Yrd Mat Mat Hostile Shots Fired 79 | . 38 41 Missed 17 | . 6 11 Hits 62 | . 32 30 Projectile 62 | . 32 30 Critical Strikes 1 | . . 1 Damage Taken 706 | . 328 378 Core 228 | . 124 104 Absorbed by Shields . | . . . Core Remaining (%) 75 | 100 50 . Volleys Fired 97 | 11 56 30 Largest 2 | 2 2 2 Hottest 70 | 70 70 40 Shots Fired 188 | 22 112 54 Gun 188 | 22 112 54 Cannon . | . . . Launcher . | . . . Special . | . . . Kinetic 172 | 11 107 54 Thermal 16 | 11 5 . Explosive . | . . . Electromagnetic . | . . . Robot Hit Streak 12 | 9 12 7 Robot Miss Streak 5 | 2 5 5 Penetration Max . | . . . Secondary Targets 4 | . 2 2 Max Gunslinging Chain 1 | . 1 1 Shots Hit Robots 108 | 16 62 30 Core Hits 55 | 9 27 19 Critical Kills 1 | . 1 . Critical Parts Destroyed . | . . . Critical Strikes 2 | 1 1 . Burn 1 | 1 . . Destroy 1 | . 1 . Melee Attacks . | . . . Impact . | . . . Slashing . | . . . Piercing . | . . . Sneak Attacks . | . . . Combat Hostiles . | . . . Follow-up Attacks . | . . . Damage Inflicted 1062 | 221 583 258 Guns 1062 | 221 583 258 Cannons . | . . . Explosions . | . . . Melee . | . . . Ramming . | . . . Kinetic 898 | 95 545 258 Thermal 164 | 126 38 . Explosive . | . . . Electromagnetic . | . . . Impact . | . . . Slashing . | . . . Piercing . | . . . Highest Corruption 4 | . 4 . Average Corruption 3 | . 3 . Corruption Purged . | . . . Corruption Blocked . | . . . Effects 2 | . 2 . Alerts 2 | . 2 . Overload Shots . | . . . Overflow Damage . | . . . Projectiles . | . . . Explosions . | . . . Melee . | . . . Knockbacks . | . . . Impact . | . . . Kinetic . | . . . Secondary . | . . . Self-Inflicted Damage . | . . . Shots . | . . . Rammed . | . . . Targets Rammed . | . . . Kicked . | . . . Crushed . | . . . Highest Temperature 54 | 54 45 20 Average Temperature 14 | 21 11 6 Received Heat Transfer 327 | . 144 183 Siege Activations . | . . . Martial Activations . | . . . Shielding Activations . | . . . Robots Disrupted . | . . . Combat Hostiles . | . . . Robots Corrupted . | . . . Combat Hostiles . | . . . Parts Fried . | . . . Impact Corruptions . | . . . Robots Melted . | . . . Combat Hostiles . | . . . Parts Melted 2 | 1 1 . Heat Transferred 555 | 444 111 . Parts Sabotaged . | . . . Parts Stolen . | . . . Parts Stripped . | . . . Power Chain Reactions . | . . . Alert | -11 -10 -9 ------- Run | Yrd Mat Mat Maximum Alert Level . | . . . Low Security (%) 100 | 100 100 100 Level 1 . | . . . Level 2 . | . . . Level 3 . | . . . Level 4 . | . . . Level 5 . | . . . High Security . | . . . Max Security . | . . . Peak Influence 70 | 15 70 57 Initial . | . . . Average 18 | 3 21 19 Influence Increases 398 | 40 221 137 Destroy 0b10 Robot/C 260 | . 160 100 Destroy 0b10 Robot/NC 75 | 40 20 15 Destroy Leader 56 | . 34 22 Successful Hack 7 | . 7 . Influence Decreases 391 | 40 221 130 Time Decay 309 | 40 209 60 Lost Part 82 | . 12 70 Squads Dispatched 3 | . 2 1 Investigation 1 | . 1 . Extermination . | . . . Reinforcement 2 | . 1 1 Assault . | . . . Garrison . | . . . Intercept . | . . . Searches Triggered . | . . . Construction Impeded . | . . . Haulers Reinforced . | . . . Active Scanning Responses . | . . . Cargo Convoy Interrupts . | . . . Stealth | -11 -10 -9 --------- Run | Yrd Mat Mat Distress Signals 3 | . 1 2 Communications Jammed . | . . . Distress Signals . | . . . Times Spotted 24 | . 14 10 Peak Tracking Total 5 | . 5 5 Tactical Retreats . | . . . Traps | -11 -10 -9 ------- Run | Yrd Mat Mat Traps Triggered 3 | . 3 . Indirectly . | . . . Trap Hack Attempts . | . . . Triggered . | . . . Disarmed . | . . . Reprogrammed . | . . . Reused . | . . . Traps Extracted . | . . . Installed . | . . . Triggered . | . . . Machines | -11 -10 -9 ---------- Run | Yrd Mat Mat Machines Disabled . | . . . Max in Single Turn . | . . . Machines Repaired . | . . . Machines Dismantled . | . . . Machines Sabotaged . | . . . Overloaded Fab Kills . | . . . Hacking | -11 -10 -9 --------- Run | Yrd Mat Mat Machines Accessed 1 | . 1 . Terminals 1 | . 1 . Fabricators . | . . . Repair Stations . | . . . Recycling Units . | . . . Scanalyzers . | . . . Garrison Access . | . . . Total Hacks 2 | . 2 . Successful 1 | . 1 . Failed 1 | . 1 . Catastrophic . | . . . Database Lockouts . | . . . Manual . | . . . Terminals 2 | . 2 . Fabricators . | . . . Repair Stations . | . . . Recycling Units . | . . . Scanalyzers . | . . . Garrison Access . | . . . Terminal Hacks 1 | . 1 . Registered Components 1 | . 1 . Fabricator Hacks . | . . . Repair Station Hacks . | . . . Recycling Unit Hacks . | . . . Scanalyzer . | . . . Garrison Access Hacks . | . . . Unauthorized Hacks . | . . . Terminals . | . . . Fabricators . | . . . Repair Stations . | . . . Recycling Units . | . . . Scanalyzers . | . . . Garrison Access . | . . . Data Cores Recovered . | . . . Used . | . . . Hacking Detections 1 | . 1 . Full Trace Events . | . . . Feedback Events . | . . . Feedback Blocked . | . . . Robot Schematics Acquired . | . . . Robots Built . | . . . Authchips . | . . . Time . | . . . Total Robot Build Rating . | . . . Part Schematics Acquired . | . . . Parts Built . | . . . Authchips . | . . . Time . | . . . Total Part Build Rating . | . . . Parts Repaired . | . . . Time . | . . . Parts Recycled . | . . . Recycled Matter . | . . . Retrieved Matter . | . . . Retrieved Components . | . . . Parts Scanalyzed . | . . . Part Schematics Acquired . | . . . Parts Damaged . | . . . Bothacking | -11 -10 -9 ------------ Run | Yrd Mat Mat Used RIF Installer . | . . . Robots Hacked . | . . . Non-combat . | . . . Combat . | . . . Robot Hacks Applied . | . . . Relay Couplers Released . | . . . Fabnet Peak Effective % . | . . . Robots Rewired . | . . . Allies Hacked . | . . . Hacks Repelled . | . . . Allies | -11 -10 -9 -------- Run | Yrd Mat Mat Total Allies . | . . . Largest Group . | . . . Highest-Rated Group . | . . . Highest-Rated Ally . | . . . Total Orders . | . . . Ally Attacks . | . . . Total Damage . | . . . Kills . | . . . Allies Corrupted . | . . . Allies Melted . | . . . Intel | -11 -10 -9 ------- Run | Yrd Mat Mat Active Infowar (turns) 524 | 67 292 165 Terrain 524 | 67 292 165 Robot Analysis Total . | . . . Derelict Logs Recovered . | . . . Drone Launches . | . . . Drone Recoveries . | . . . Exploration | -11 -10 -9 ------------- Run | Yrd Mat Mat Turns Passed 852 | 146 541 165 Spaces Moved 529 | 91 318 120 Core 17 | 17 . . Treads . | . . . Legs 48 | . 48 . Wheels 214 | 74 140 . Hover 250 | . 130 120 Flight . | . . . Fastest Speed 50 | 50 56 52 Average Speed 87 | 105 91 63 Slowest Speed 200 | 200 120 120 Overloaded Moves . | . . . Propulsion Burnouts . | . . . Robots Hopped . | . . . Potential Cave-ins . | . . . Cave-ins Triggered . | . . . Exploration Rate (%) 19 | 3 40 16 Regions Visited 2 Branch Regions . Pre-discovered Areas . | . . . Known Exits Taken 1 | . 1 . Unknown Exits Taken 1 | 1 . . Scrap Searched . | . . . Spaces Dug . | . . . Terrain Destroyed . | . . . Melee . | . . . Projectile . | . . . AOE . | . . . Terrain Rammed . | . . . Walls Destroyed . | . . . Machines Disabled . | . . . Actions | -11 -10 -9 --------- Run | Yrd Mat Mat Total 758 | 115 478 165 Wait 67 | . 67 . Move 527 | 90 317 120 Hop . | . . . Pick Up 22 | 7 11 4 Fast Attach 16 | 7 8 1 Attach 5 | . 1 4 Detach 1 | . . 1 Swap 5 | . 2 3 Drop 18 | . 16 2 Fire 97 | 11 56 30 Melee . | . . . Ram . | . . . Kick . | . . . Crush . | . . . Escape Stasis . | . . . Rewire . | . . . Trap . | . . . Miscellaneous . | . . . Route ------- -11/Scrapyard -10/Materials (discovered 2 exits: *Mat / *Min) -9/Materials History --------- Turn | Location | Event 6 | -11/Scrapyard | Discovered new exit (range 16) 147 | -11/Scrapyard | Entered Materials 350 | -10/Materials | Discovered new exit (range 9) 434 | -10/Materials | Discovered new exit (range 9) 441 | -10/Materials | Identified exit to Materials 593 | -10/Materials | Identified exit to Mines 688 | -10/Materials | Entered another Materials area 688 | -9/Materials | Evolved 2 slots: Propulsion x1, Utility x1 853 | -9/Materials | Self-destructed Last Messages --------------- 00774_ R-06 Scavenger collects Terrain Scanner. 00782_ Acquired 23 matter. 00783_ G-34 Mercenary destroyed. 00786_ Acquired Hover Unit. 00788_ R-06 Scavenger collects Visual Processing Unit. 00796_ Hover Unit destroyed. 00800_ G-47 Trooper destroyed. 00807_ Lgt. Ion Engine destroyed. 00811_ G-34 Mercenary destroyed. 00811_ Switching to secondary target: G-34 Mercenary. 00813_ Hover Unit destroyed. 00813_ G-34 Mercenary destroyed. 00822_ Acquired 49 matter. 00822_ Acquired 16 matter. 00823_ W-16 Scout sends out distress signal. 00832_ Critical hit (Burn: +37). 00832_ Hover Unit destroyed. 00835_ Lgt. Assault Rifle destroyed. Map ----- +----------------------------------------------------+ | | | | | | | | | | | | | | | | | | | | | | | | | | | ??????????????????#??????????????????? | | ????????????????????#????????????????? | | ????????????????????????????? ???????? | | ?????????????????????????????????????? | | ?????????????????????????????????R" ?? | | ??????????#?????#???????????????"""??? | | ??????????????? ??????????????? ???? | | ?????????????????????????????? ????# | | ??????????????????????######? ?????? | | ??????????????????????# ##+###????? | | ??????????????????????+ #????? | | ??????????????????????# ??????? | | ??????????????????????# @ #?????????? | | ???????????????????? ?## ##?????????? | | ?????#????????##########Y #??? ??????? | | ?????# ??????# #??????????? | | ???### #####?# ##?????????? | | ?? "T" ?# +?????????? | | ?? ?# !!! ##?????????? | | ?? ?# !!! #??? ??????? | | ??" ?# !!! #???? ?????? | | ?"" ## #??????????? | | ?"" k #??????????? | | ?" ######+##??????????? | | ?"" #?????? ??????????? | | ?"" #???????"" ????????? | | """ #????????" ????????? | | " #??"??????? ?? ????? | | == #??????????????????? | | =[%#####?????##+##+## #???? | | [#???? ?????# #???? | | ########### #?????"???## ##??? | | ??????????# #???? ????#" ""#?? | | ?????????## #?"?? ??? #T T"??? | | ?????#????# #??????????" ""??? | | ?????#????# #??????????# """ #???? | | ??????#???# # ??? ?????# """ #???? | +----------------------------------------------------+ Best States ------------- Heat Dissipation 28 Energy Generation 10 Energy Capacity 250 Matter Stores 300 Matter Capacity 300 Sight Range 16 Terrain Scan Range 16 Terrain Scan Density 10 Evasion (%) 55 Item Schematics ----------------- None Robot Schematics ------------------ None Fabricated ------------ Nothing Repaired ---------- Nothing Alien Tech Used ----------------- None Achievements -------------- None Challenges ------------ None Game ------ Seed RuleWhole Manual? 1 Play Time 00:10:32 Cumulative 16.7 hours Start 2025.09.07 @ 05:51:59 End 2025.09.07 @ 06:00:27 Sessions 1 Manual Loads 0 Difficulty Rogue Special Mode None Game No. 47 Rogue 47 Adventurer 0 Explorer 0 Win Type - Total 0 Types 0/0/0/0/0/0/0/0/0/0 Lore% 16 Gallery% 22 Achievement% 24 Wizard Run 0 Options --------- Layout 2 ASCII 0 Keyboard 0 Movement Mouse Keybinds 0 Fullscreen 2 Font 24/Smallcaps Map View 50x44 Zoom Use 0% Tactical HUD 1 Map Filters NONE Filters NONE Steam 1 RUN: ca557d3a-c377-4652-bccc-569092c8105f